Cogmind - Beta 16 @@@ ROGUE MODE // 2025.12.04 @ 00:18:23 Player: Skysub Result: Destroyed by EB-9FQ(R) with Subdweller Beam Cannon Performance ------------- Evolutions (0) 0 Regions Visited (3) 600 Robots Destroyed (43) 215 Value Destroyed (998) 998 Prototype IDs (0) 0 Alien Tech Used (0) 0 Bonus (0) 0 TOTAL SCORE: 1813 Bonus ------- None Cogmind --------- Core Integrity 0/250 Matter 239/300 Energy 100/100 System Corruption 0% Temperature Cool (9) Movement Rolling (130) Ox2 Location -10/Subcaves Parts ------- > --- POWER (1) -------- (None) > --- PROPULSION (2) --- Compact Wheel > --- UTILITY (2) ------ High-capacity Storage Unit > --- WEAPON (2) ------- Heavy Assault Rifle Heavy Assault Rifle > --- INVENTORY (20) --- Light Ion Engine Light Nuclear Core Light Treads Light Treads Light Treads Light Treads Light Treads Wheel Wheel Compact Wheel Huge Storage Unit High-capacity Matter Pod (200) Improved Terrain Scanner Assault Rifle Light Assault Rifle Heavy Assault Rifle Heavy Assault Rifle Heavy Assault Rifle Mining Laser Peak State ------------ > --- POWER ------------ Ion Engine > --- PROPULSION ------- Compact Wheel Compact Wheel > --- UTILITY ---------- Huge Storage Unit Seismic Detector > --- WEAPON ----------- Heavy Assault Rifle Heavy Assault Rifle > --- INVENTORY -------- Light Treads Light Treads Light Treads Light Treads Compact Wheel Improved Terrain Scanner Utility Shielding Heavy Assault Rifle Heavy Assault Rifle Heavy Assault Rifle Heavy Assault Rifle Heavy Assault Rifle Heavy Assault Rifle Mining Laser [Rating: 11] Favorites ----------- Power Ion Engine Engine Ion Engine Propulsion Compact Wheel Treads Light Treads Wheel Compact Wheel Utility Seismic Detector Device Seismic Detector Storage Huge Storage Unit Protection Light Armor Plating Weapon Heavy Assault Rifle Ballistic Gun Heavy Assault Rifle Build | -11 -10 -10 -10 ------- Run | Yrd Mat Min Sub Slots Evolved . | . . . . Power . | . . . . Propulsion . | . . . . Utility . | . . . . Weapon . | . . . . Parts Attached 19 | 7 9 2 1 Power 2 | 1 1 . . Engine 2 | 1 1 . . Core . | . . . . Reactor . | . . . . Propulsion 5 | 2 3 . . Treads 2 | 2 . . . Leg . | . . . . Wheel 3 | . 3 . . Hover . | . . . . Flight . | . . . . Utility 5 | 2 1 2 . Device 1 | 1 . . . Storage 3 | 1 1 1 . Processor . | . . . . Hackware . | . . . . Protection 1 | . . 1 . Artifact . | . . . . Weapon 7 | 2 4 . 1 Energy Gun . | . . . . Energy Cannon . | . . . . Ballistic Gun 7 | 2 4 . 1 Ballistic Cannon . | . . . . Launcher . | . . . . Special Weapon . | . . . . Impact Weapon . | . . . . Slashing Weapon . | . . . . Piercing Weapon . | . . . . Special Melee Weapon . | . . . . Unidentified Prototypes . | . . . . Parts Lost 9 | . 4 1 4 Power 2 | . 1 . 1 Propulsion 2 | . 1 . 1 Utility 2 | . . 1 1 Weapon 3 | . 2 . 1 Highest Loss Streak 4 | . 2 1 4 To Critical Strikes . | . . . . Average Backups 14 | 2 13 19 19 Power . | . . 1 2 Propulsion 5 | 1 4 7 8 Utility 2 | . 2 3 3 Weapon 5 | . 5 6 6 Tool/Special . | . . . . Unused Backups 19 | . 1 2 16 Power 3 | . 1 . 2 Propulsion 7 | . . 1 6 Utility 3 | . . 1 2 Weapon 6 | . . . 6 Tool/Special . | . . . . Average Slot Usage (%) 98 | . 99 99 79 Engine 13 | . 13 14 8 Treads 4 | . 6 . . Wheel 23 | . 21 28 19 Device 10 | . 14 5 . Storage 14 | . 14 14 14 Protection 2 | . . 7 8 Ballistic Gun 27 | . 27 28 28 Peak Build Rating 11 | 7 11 11 11 Average Rating 10 | 5 10 10 9 On Entrance 7 | . 7 11 11 Avg Prop Armor Cover (%) . | . . . . Naked Turns . | . . . . Heaviest Build 92 | 13 92 92 54 Greatest Support 40 | 40 40 32 32 Greatest Overweight (x) 5 | . 5 2 2 Average Overweight (x) 1 | . 1 1 1 Largest Inventory Capacity 25 | 8 25 25 20 Average Capacity 20 | 7 21 20 20 Most Carried 20 | 4 18 20 20 Average Carried 14 | 2 13 19 19 Final Capacity 25 | 8 25 20 20 Final Carried 20 | 4 18 20 19 Class Distribution -------------------- 100% | Mutant Dominant Class ---------------- Mutant | -10/Materials Mutant | -10/Mines Mutant | -10/Subcaves Resources | -11 -10 -10 -10 ----------- Run | Yrd Mat Min Sub Matter Collected 1183 | 287 706 190 . Remotely . | . . . . Salvage Created 1571 | 90 992 459 30 Parts 98 | 6 61 29 2 Haulers Intercepted 2 | . 2 . . Recyclers Shooed . | . . . . Parts Field Recycled . | . . . . Retrieved Matter . | . . . . Parts Self-Destructed . | . . . . Prevented . | . . . . Parts Restored . | . . . . Kills | -11 -10 -10 -10 ------- Run | Yrd Mat Min Sub Combat Hostiles Destroyed 27 | . 18 8 1 Guns 27 | . 18 8 1 Classes Destroyed 9 | 2 6 . 1 Worker 7 | . 4 3 . Tunneler 2 | 1 1 . . Hauler 2 | . 2 . . Recycler 3 | 1 1 1 . Operator 1 | . 1 . . Watcher 1 | . 1 . . Swarmer 4 | . 2 2 . Grunt 22 | . 16 6 . Subdweller 1 | . . . 1 Best Kill Streak 8 | 2 8 5 1 Combat Bots Only 4 | . 4 2 1 Max Kills in Single Turn 2 | 1 2 1 1 Gunslinging 1 | . 1 . . Exploded . | . . . . Melee . | . . . . Uniques/NPCs Destroyed . | . . . . Combat | -11 -10 -10 -10 -------- Run | Yrd Mat Min Sub Hostile Shots Fired 140 | . 82 36 22 Missed 40 | . 25 9 6 Hits 100 | . 57 27 16 Projectile 100 | . 57 27 16 Critical Strikes 2 | . 2 . . Damage Taken 1395 | . 712 296 387 Core 271 | . 105 78 88 Absorbed by Shields . | . . . . Core Remaining (%) 100 | 100 . . . Volleys Fired 123 | 10 80 22 11 Largest 2 | 2 2 2 2 Hottest 46 | 40 46 46 46 Shots Fired 244 | 20 158 44 22 Gun 244 | 20 158 44 22 Cannon . | . . . . Launcher . | . . . . Special . | . . . . Kinetic 244 | 20 158 44 22 Thermal . | . . . . Explosive . | . . . . Electromagnetic . | . . . . Robot Hit Streak 10 | 7 10 8 5 Robot Miss Streak 7 | 1 7 2 2 Penetration Max . | . . . . Secondary Targets 3 | . 2 . 1 Max Gunslinging Chain 1 | . 1 . 1 Shots Hit Robots 151 | 16 96 26 13 Core Hits 65 | 6 40 16 3 Critical Kills . | . . . . Critical Parts Destroyed 1 | . . 1 . Critical Strikes 1 | . . 1 . Destroy 1 | . . 1 . Melee Attacks . | . . . . Impact . | . . . . Slashing . | . . . . Piercing . | . . . . Sneak Attacks . | . . . . Combat Hostiles . | . . . . Follow-up Attacks . | . . . . Damage Inflicted 2255 | 116 1554 411 174 Guns 2249 | 110 1554 411 174 Cannons . | . . . . Explosions . | . . . . Melee . | . . . . Ramming 6 | 6 . . . Kinetic 2249 | 110 1554 411 174 Thermal . | . . . . Explosive . | . . . . Electromagnetic . | . . . . Impact . | . . . . Slashing . | . . . . Piercing . | . . . . Highest Corruption . | . . . . Average Corruption . | . . . . Corruption Purged . | . . . . Corruption Blocked . | . . . . Overload Shots . | . . . . Overflow Damage . | . . . . Projectiles . | . . . . Explosions . | . . . . Melee . | . . . . Knockbacks . | . . . . Impact . | . . . . Kinetic . | . . . . Secondary . | . . . . Self-Inflicted Damage . | . . . . Shots . | . . . . Rammed 1 | 1 . . . Targets Rammed 1 | 1 . . . Kicked . | . . . . Crushed . | . . . . Highest Temperature 22 | . 22 17 . Average Temperature 5 | . 4 7 . Received Heat Transfer 648 | . 393 135 120 Siege Activations . | . . . . Martial Activations . | . . . . Shielding Activations . | . . . . Robots Disrupted . | . . . . Combat Hostiles . | . . . . Robots Corrupted . | . . . . Combat Hostiles . | . . . . Parts Fried . | . . . . Impact Corruptions . | . . . . Robots Melted . | . . . . Combat Hostiles . | . . . . Parts Melted . | . . . . Heat Transferred . | . . . . Parts Sabotaged . | . . . . Parts Stolen . | . . . . Parts Stripped . | . . . . Power Chain Reactions . | . . . . Alert | -11 -10 -10 -10 ------- Run | Yrd Mat Min Sub Maximum Alert Level 1 | . 1 . . Low Security (%) 96 | 100 93 100 . Level 1 3 | . 6 . . Level 2 . | . . . . Level 3 . | . . . . Level 4 . | . . . . Level 5 . | . . . . High Security . | . . . . Max Security . | . . . . Peak Influence 240 | 5 240 95 . Initial 10 | . . 10 . Average 46 | 1 59 30 . Influence Increases 959 | 10 669 280 . Destroy 0b10 Robot/C 520 | . 360 160 . Destroy 0b10 Robot/NC 80 | 10 50 20 . Destroy Leader 106 | . 66 40 . Successful Hack 26 | . 26 . . Select Force Hacks 60 | . 60 . . Disable Machine 45 | . 30 15 . Destroy Structure 2 | . 2 . . Lose Combat Pursuer 120 | . 75 45 . Influence Decreases 959 | 10 642 266 41 Entered New Map 39 | . . 17 22 Time Decay 711 | 10 452 249 . Lost Part 59 | . 40 . 19 Purge Threat 150 | . 150 . . Squads Dispatched 6 | . 6 . . Investigation 5 | . 5 . . Extermination . | . . . . Reinforcement 1 | . 1 . . Assault . | . . . . Garrison . | . . . . Intercept . | . . . . Searches Triggered . | . . . . Construction Impeded . | . . . . Haulers Reinforced . | . . . . Active Scanning Responses . | . . . . Cargo Convoy Interrupts . | . . . . Stealth | -11 -10 -10 -10 --------- Run | Yrd Mat Min Sub Distress Signals 3 | . 3 . . Communications Jammed . | . . . . Distress Signals . | . . . . Times Spotted 49 | . 35 12 2 Peak Tracking Total 4 | . 4 3 2 Tactical Retreats 6 | . 4 2 . Traps | -11 -10 -10 -10 ------- Run | Yrd Mat Min Sub Traps Triggered 2 | . 2 . . Indirectly . | . . . . Trap Hack Attempts . | . . . . Triggered . | . . . . Disarmed . | . . . . Reprogrammed . | . . . . Reused . | . . . . Traps Extracted . | . . . . Installed . | . . . . Triggered . | . . . . Machines | -11 -10 -10 -10 ---------- Run | Yrd Mat Min Sub Machines Disabled 3 | . 2 1 . Max in Single Turn 1 | . 1 1 . Machines Repaired . | . . . . Machines Dismantled . | . . . . Machines Sabotaged . | . . . . Overloaded Fab Kills . | . . . . Hacking | -11 -10 -10 -10 --------- Run | Yrd Mat Min Sub Machines Accessed 8 | . 8 . . Terminals 6 | . 6 . . Fabricators . | . . . . Repair Stations . | . . . . Recycling Units 2 | . 2 . . Scanalyzers . | . . . . Garrison Access . | . . . . Total Hacks 33 | . 33 . . Successful 17 | . 17 . . Failed 16 | . 16 . . Catastrophic 2 | . 2 . . Database Lockouts . | . . . . Manual 23 | . 23 . . Terminals 29 | . 29 . . Fabricators . | . . . . Repair Stations . | . . . . Recycling Units 4 | . 4 . . Scanalyzers . | . . . . Garrison Access . | . . . . Terminal Hacks 6 | . 6 . . Robot Analysis 1 | . 1 . . Branch Access Points 1 | . 1 . . Terminal Index 1 | . 1 . . Unreport Threat 1 | . 1 . . Locate Traps 1 | . 1 . . Zone Layout 1 | . 1 . . Fabricator Hacks . | . . . . Repair Station Hacks . | . . . . Recycling Unit Hacks 2 | . 2 . . Report Inventory 2 | . 2 . . Scanalyzer . | . . . . Garrison Access Hacks . | . . . . Unauthorized Hacks 9 | . 9 . . Terminals 7 | . 7 . . Track 1 | . 1 . . Botnet 2 | . 2 . . Skim 4 | . 4 . . Fabricators . | . . . . Repair Stations . | . . . . Recycling Units 2 | . 2 . . Tunnel 2 | . 2 . . Scanalyzers . | . . . . Garrison Access . | . . . . Data Cores Recovered . | . . . . Used . | . . . . Hacking Detections 6 | . 6 . . Full Trace Events 2 | . 2 . . Feedback Events . | . . . . Feedback Blocked . | . . . . Robot Schematics Acquired . | . . . . Robots Built . | . . . . Authchips . | . . . . Time . | . . . . Total Robot Build Rating . | . . . . Part Schematics Acquired . | . . . . Parts Built . | . . . . Authchips . | . . . . Time . | . . . . Total Part Build Rating . | . . . . Part Studies Acquired . | . . . . Parts Repaired . | . . . . Time . | . . . . Parts Recycled . | . . . . Recycled Matter . | . . . . Retrieved Matter . | . . . . Retrieved Components . | . . . . Parts Scanalyzed . | . . . . Part Schematics Acquired . | . . . . Parts Damaged . | . . . . Bothacking | -11 -10 -10 -10 ------------ Run | Yrd Mat Min Sub Used RIF Installer . | . . . . Robots Hacked . | . . . . Non-combat . | . . . . Combat . | . . . . Robot Hacks Applied . | . . . . Relay Couplers Released . | . . . . Fabnet Peak Effective % . | . . . . Robots Rewired . | . . . . Allies Hacked . | . . . . Hacks Repelled . | . . . . Allies | -11 -10 -10 -10 -------- Run | Yrd Mat Min Sub Total Allies . | . . . . Largest Group . | . . . . Highest-Rated Group . | . . . . Highest-Rated Ally . | . . . . Total Orders . | . . . . Ally Attacks . | . . . . Total Damage . | . . . . Kills . | . . . . Allies Corrupted . | . . . . Allies Melted . | . . . . Intel | -11 -10 -10 -10 ------- Run | Yrd Mat Min Sub Active Infowar (turns) 1677 | 20 1373 284 . Seismic 1677 | 20 1373 284 . Robot Analysis Total 1 | . 1 . . Derelict Logs Recovered 2 | . . 2 . Drone Launches . | . . . . Drone Recoveries . | . . . . Exploration | -11 -10 -10 -10 ------------- Run | Yrd Mat Min Sub Turns Passed 2232 | 130 1373 692 37 Spaces Moved 1307 | 57 727 519 4 Core 2 | 2 . . . Treads 198 | 55 143 . . Legs . | . . . . Wheels 1107 | . 584 519 4 Hover . | . . . . Flight . | . . . . Fastest Speed 50 | 50 130 115 115 Average Speed 128 | 156 136 115 118 Slowest Speed 175 | 160 175 130 130 Overloaded Moves . | . . . . Propulsion Burnouts . | . . . . Robots Hopped . | . . . . Potential Cave-ins . | . . . . Cave-ins Triggered . | . . . . Exploration Rate (%) 48 | 4 91 97 2 Regions Visited 3 Branch Regions 2 Pre-discovered Areas 3 | . 2 1 . Known Exits Taken 1 | . 1 . . Unknown Exits Taken 2 | 1 . 1 . Scrap Searched 3 | . . 3 . Spaces Dug . | . . . . Terrain Destroyed . | . . . . Melee . | . . . . Projectile . | . . . . AOE . | . . . . Terrain Rammed . | . . . . Walls Destroyed . | . . . . Machines Disabled . | . . . . Actions | -11 -10 -10 -10 --------- Run | Yrd Mat Min Sub Total 1615 | 78 954 567 16 Wait 134 | . 116 18 . Move 1304 | 56 726 518 4 Hop . | . . . . Pick Up 28 | 4 19 5 . Fast Attach 7 | 7 . . . Attach 6 | . 4 1 1 Detach . | . . . . Swap 6 | . 5 1 . Drop 6 | . 4 2 . Fire 123 | 10 80 22 11 Melee . | . . . . Ram . | . . . . Kick . | . . . . Crush 1 | 1 . . . Escape Stasis . | . . . . Rewire . | . . . . Trap . | . . . . Miscellaneous . | . . . . Route ------- -11/Scrapyard -10/Materials (discovered 4 exits: [*Mat x3] / *Min) -10/Mines (discovered 3 exits: [*Mat x2] / [*Sub]) -10/Subcaves History --------- Turn | Location | Event 23 | -11/Scrapyard | Discovered new exit (range 15) 131 | -11/Scrapyard | Entered Materials 311 | -10/Materials | Build established: Mutant 678 | -10/Materials | Discovered new exit (range 16) 982 | -10/Materials | Discovered new exit (range 10) 1076 | -10/Materials | Identified exit to Mines 1170 | -10/Materials | Discovered new exit (range 12) 1504 | -10/Materials | Entered Mines 1511 | -10/Mines | Learned location of 1 exit from Materials 1519 | -10/Mines | Met a Derelict bent on vengeance 1527 | -10/Mines | Core integrity fell below 50% 1722 | -10/Mines | Learned location of Zion (-6) 1804 | -10/Mines | Discovered new exit (range 11) 2076 | -10/Mines | Discovered new exit (range 5) 2190 | -10/Mines | Discovered new exit (range 6) 2196 | -10/Mines | Entered Subcaves 2197 | -10/Subcaves | Approached by a straggling Scientist 2210 | -10/Subcaves | Core integrity fell below 20% 2233 | -10/Subcaves | Destroyed by EB-9FQ(R) with Subdweller Beam Cannon Last Messages --------------- 02161_ Acquired Wheel. 02162_ Acquired 14 matter. 02164_ Dropped Com. Wheel. 02164_ Acquired Wheel. 02190_ EXIT=FOUND LOCATION=UNKNOWN AMBIENT_HEAT=-10 GOAL=ESCAPE 02197_ KJ-KDU(c): "Thank the algorithms! I was beginning to lose hope I'd never make it past all the Subs lurking out here." 02199_ EB-9FQ(R) emerges from the Twisted Machinery. 02200_ KJ-KDU(c): "Hey, let me tag along and I can get us both out of this nasty situation. At least I think I can... The group I got separated from was talking about a shortcut back to the UFD." 02200_ Hvy. Assault Rifle destroyed. 02205_ Com. Wheel destroyed. 02213_ Lgt. Armor Plating destroyed. 02217_ Ion Engine destroyed. 02222_ NX-UVI(R) destroyed. 02222_ Switching to secondary target: EB-9FQ(R). Map ----- +----------------------------------------------------+ | ?????????????????????????????????????????????????? | | ?????????????????????????????????????????????????? | | ?????????????????????????????????????????????????? | | ?????????????????????????????????????????????????? | | ?????????????????????????????????????????????????? | | ?????????????????????????????????????????????????? | | ?????????????????????????????????????????????????? | | ?????????????????????????????????????????????????? | | ?????????????????????????????????????????????????? | | ?????????????????????????????????????????????????? | | ?????????????????????????????????????????????????? | | ?????????????????????????????????????????????????? | | ?????????????????????????????????????????????????? | | ?????????????????????????????????????????????????? | | ?????????????????????????????????????????????????? | | ?????????????????????????????????????????????????? | | ?????????????????????????????????????????????????? | | ??????????????? ???????????????????????????????? | | ???????????? ##"""??????????????????????????????? | | ????????????? #?????????????????????????????? | | ?????????????"" ##???????????????????????????? | | ?????????????# ! ;#??????????????????????????? | | ???????????????? R! #?????????????????????????? | | ??????????????????# ##???????????????????????? | | ???????????????????# ###?????????????????????? | | ???????????????????# @ #?????????????????????? | | ???????????????????## ##?????????????????????? | | ????????????????????# ##?????????????????????? | | ????????????????????# #?????????????????????? | | ????????????????????# c #?????????????????????? | | ???????????????????# #????????????????????? | | ????????????????? ???????????????????? | | ??????????????? ?????????????????? | | ????????????? #### ????????????????? | | ???????????? ????## ## ##???????????????? | | ???????????#????????# ##?? #???????????????? | | ????????????????????##???? #???????????????? | | ?????????????????????????? #???????????????? | | ??????????????????????????### ##???????????????? | | ?????????????????????????????# ##????????????????? | | ?????????????????????????????? #?????????????????? | | ???????????????????????????????#?????????????????? | | ?????????????????????????????????????????????????? | | ?????????????????????????????????????????????????? | | ?????????????????????????????????????????????????? | | ?????????????????????????????????????????????????? | | ?????????????????????????????????????????????????? | | ?????????????????????????????????????????????????? | | ?????????????????????????????????????????????????? | | ?????????????????????????????????????????????????? | +----------------------------------------------------+ Best States ------------- Heat Dissipation 25 Energy Generation 10 Energy Capacity 250 Matter Stores 300 Matter Capacity 300 Sight Range 16 Terrain Scan Density 10 Armor Coverage 150 Evasion (%) 40 Recoil Reduction 2 Item Schematics ----------------- None Robot Schematics ------------------ None Fabricated ------------ Nothing Repaired ---------- Nothing Studied --------- None Alien Tech Used ----------------- None Achievements -------------- None Challenges ------------ None Game ------ Seed HelicalReflectiveFlightbrick Manual? 0 Play Time 00:10:43 Cumulative 308.1 hours Start 2025.12.04 @ 00:08:07 End 2025.12.04 @ 00:18:23 Sessions 1 Manual Loads 0 Difficulty Rogue Special Mode None Game No. 378 Rogue 378 Adventurer 0 Explorer 0 Win Type - Total 21 Types 13/0/3/1/1/0/1/1/0/1 Lore% 78 Gallery% 77 Achievement% 62 Wizard Run 0 Options --------- Layout 1 ASCII 0 Keyboard 1 Movement Numpad Keybinds 0 Fullscreen 2 Font 32/SmallcapsGlow Map View 77x35 Zoom Use 0% Tactical HUD 1 Map Filters NONE Filters NONE Steam 1 RUN: 952966f0-4dbf-4dc6-b297-cd0574da2e4c